Cogmind - Beta 14 --- EXPLORER MODE // 2024.08.15 @ 21:24:36 // Winter2019/RPGLIKE Player: Gnomed! Result: Establishing 0b11! Performance ------------- Evolutions (9) 4500 Regions Visited (18) 3600 Robots Destroyed (144) 720 Value Destroyed (9007) 9007 Prototype IDs (1) 20 Alien Tech Used (0) 0 Bonus (33736) 33736 TOTAL SCORE: 51583 Bonus ------- High Alert Combat Kills 1980 Follower Combat Kills 271 Entered DSFs 1000 A7 Reached Mainframe 300 Met R17 at Cetus 500 Destroyed MAIN.C Guards 500 Met MAIN.C 5000 Hacked MAIN.C 300 Destroyed MAIN.C Shell 5000 Destroyed MAIN.C 10000 Win 3000 Win Speed 5885 Cogmind --------- Core Integrity 14208/20000 Matter 453/3750 Energy 10239/10240 System Corruption 41% Temperature Cool (3) Movement Flying (39) Location 0b11 Command Parts ------- > --- POWER (1) -------- Particle Reactor > --- PROPULSION (6) --- Impulse Thruster Array Impulse Thruster Array Impulse Thruster Array > --- UTILITY (13) ----- Matter Compressor Advanced Weapon Cycler > --- WEAPON (6) ------- Hypervelocity Mass Driver Hypervelocity Mass Driver Hypervelocity Mass Driver Fusion Bomb Launcher > --- INVENTORY (100) -- Particle Reactor Particle Reactor Flight Unit VTOL Module VTOL Module Cesium-ion Thruster Cesium-ion Thruster Surge Thruster Surge Thruster Surge Thruster Cooled Cesium-ion Thruster Transmission Jammer Pulse Rifle Pulse Rifle Pulse Rifle Pulse Rifle Pulse Rifle Pulse Rifle Gatling Laser Gatling Laser Gatling Laser Gatling Laser Cooled Pulse Rifle Faulty Cooled Pulse Rifle Cooled Pulse Rifle Faulty High-powered Field Laser Heavy Plasma Cannon Nova Cannon Nova Cannon Nova Cannon Light Assault Rifle Light Assault Rifle Light Assault Rifle Light Assault Rifle Improved Light Cannon Improved Light Cannon Improved Light Cannon Improved Light Cannon Assault Cannon Hypervelocity Mass Driver Remote Datajack Remote Datajack Improved Remote Datajack Peak State ------------ > --- POWER ------------ Light Ion Engine > --- PROPULSION ------- Impulse Thruster Array Impulse Thruster Array Impulse Thruster Array > --- UTILITY ---------- Matter Compressor Sensor Array Advanced Terrain Scanner Transport Network Coupler Energy Filter Advanced Weapon Cycler Stasis Canceller Advanced Transmission Jammer ECM Suite Reaction Control System Cloaking Device Propulsion Shielding Improved Hardlight Generator > --- WEAPON ----------- Hypervelocity Mass Driver Hypervelocity Mass Driver Hypervelocity Mass Driver Hypervelocity Mass Driver Hypervelocity Mass Driver Hypervelocity Mass Driver > --- INVENTORY -------- Quantum Reactor Quantum Reactor Flight Unit VTOL Module VTOL Module Cesium-ion Thruster Cesium-ion Thruster Surge Thruster Surge Thruster Surge Thruster Cooled Cesium-ion Thruster Transmission Jammer Pulse Rifle Pulse Rifle Pulse Rifle Pulse Rifle Pulse Rifle Pulse Rifle Gatling Laser Gatling Laser Gatling Laser Gatling Laser Cooled Pulse Rifle Cooled Pulse Rifle Cooled Pulse Rifle High-powered Field Laser Heavy Plasma Cannon Nova Cannon Nova Cannon Nova Cannon Nova Cannon Nova Cannon Nova Cannon Light Assault Rifle Light Assault Rifle Light Assault Rifle Light Assault Rifle Improved Light Cannon Improved Light Cannon Improved Light Cannon Improved Light Cannon Assault Cannon Fusion Bomb Launcher Remote Datajack Remote Datajack Improved Remote Datajack [Rating: 161] Favorites ----------- Power Light Ion Engine Engine Light Ion Engine Reactor Particle Reactor Propulsion Impulse Thruster Array Flight Unit Impulse Thruster Array Utility Matter Compressor Device Sensor Array Storage Matter Compressor Processor Transport Network Coupler Protection Propulsion Shielding Weapon Hypervelocity Mass Driver Energy Gun Small Laser Energy Cannon Nova Cannon Ballistic Gun Autogun Ballistic Cannon Hypervelocity Mass Driver Launcher Fusion Bomb Launcher Special Weapon Improved Remote Datajack Build | -11 -10 -9 -8 -7 -7 -6 -6 -6 -5 -5 -5 -5 -4 -4 -3 -2 -1 -1 ------- Run | Yrd Mat Mat Mat Fac DSF Fac Was Fac Fac Ext Cet Arc Fac DSF Res Res Acc Com Slots Evolved 22 | 22 . . . . . . . . . . . . . . . . . . Power . | . . . . . . . . . . . . . . . . . . . Propulsion 5 | 5 . . . . . . . . . . . . . . . . . . Utility 12 | 12 . . . . . . . . . . . . . . . . . . Weapon 5 | 5 . . . . . . . . . . . . . . . . . . Parts Attached 70 | 7 9 4 5 . 14 3 . 1 . . . . . 10 . 1 . 16 Power 2 | 1 . . . . . . . . . . . . . . . . . 1 Engine 1 | 1 . . . . . . . . . . . . . . . . . . Core . | . . . . . . . . . . . . . . . . . . . Reactor 1 | . . . . . . . . . . . . . . . . . . 1 Propulsion 13 | . 1 2 2 . 4 . . 1 . . . . . 3 . . . . Treads . | . . . . . . . . . . . . . . . . . . . Leg . | . . . . . . . . . . . . . . . . . . . Wheel . | . . . . . . . . . . . . . . . . . . . Hover . | . . . . . . . . . . . . . . . . . . . Flight 13 | . 1 2 2 . 4 . . 1 . . . . . 3 . . . . Utility 16 | 3 . 2 2 . 4 3 . . . . . . . 1 . 1 . . Device 12 | 1 . 1 2 . 4 2 . . . . . . . 1 . 1 . . Storage 1 | . . . . . . 1 . . . . . . . . . . . . Processor 1 | . . 1 . . . . . . . . . . . . . . . . Hackware . | . . . . . . . . . . . . . . . . . . . Protection 2 | 2 . . . . . . . . . . . . . . . . . . Artifact . | . . . . . . . . . . . . . . . . . . . Weapon 39 | 3 8 . 1 . 6 . . . . . . . . 6 . . . 15 Energy Gun 1 | 1 . . . . . . . . . . . . . . . . . . Energy Cannon 8 | . . . . . . . . . . . . . . . . . . 8 Ballistic Gun 6 | 2 4 . . . . . . . . . . . . . . . . . Ballistic Cannon 21 | . 4 . 1 . 6 . . . . . . . . 6 . . . 4 Launcher 1 | . . . . . . . . . . . . . . . . . . 1 Special Weapon 2 | . . . . . . . . . . . . . . . . . . 2 Impact Weapon . | . . . . . . . . . . . . . . . . . . . Slashing Weapon . | . . . . . . . . . . . . . . . . . . . Piercing Weapon . | . . . . . . . . . . . . . . . . . . . Special Melee Weapon . | . . . . . . . . . . . . . . . . . . . Unidentified Prototypes 1 | . . . . . . . . 1 . . . . . . . . . . Parts Lost 9 | . . . . . . . . . . . 1 . . . . . . 8 Power 1 | . . . . . . . . . . . . . . . . . . 1 Propulsion . | . . . . . . . . . . . . . . . . . . . Utility 8 | . . . . . . . . . . . 1 . . . . . . 7 Weapon . | . . . . . . . . . . . . . . . . . . . Highest Loss Streak 5 | . . . . . . . . . . . 1 . . . . . . 5 To Critical Strikes . | . . . . . . . . . . . . . . . . . . . Average Slot Usage (%) 78 | . 33 51 67 73 82 98 100 100 100 100 98 96 96 84 84 87 88 64 Engine 2 | . 3 3 3 3 3 3 3 3 3 3 3 3 3 3 3 3 3 1 Flight 14 | . 2 9 16 19 22 23 23 23 23 23 23 23 23 12 11 11 11 11 Device 26 | . 3 5 12 15 21 32 34 34 34 34 34 34 34 33 34 37 38 21 Storage 2 | . . . . . . 2 3 3 3 3 3 3 3 3 3 3 3 3 Processor 2 | . . . 3 3 3 3 3 3 3 3 3 3 3 3 3 3 3 1 Protection 3 | . 7 7 7 7 7 7 7 7 7 7 5 3 3 3 3 3 3 . Energy Cannon 1 | . . . . . . . . . . . . . . . . . . 4 Ballistic Gun 1 | . 8 7 7 7 7 . . . . . . . . . . . . . Ballistic Cannon 18 | . 3 15 15 15 15 23 23 23 23 23 23 23 23 22 23 23 23 14 Peak Build Rating 161 | 7 17 23 38 38 74 90 90 94 94 94 94 93 93 150 150 158 158 161 Average Rating 110 | 4 10 21 33 38 51 85 90 91 94 94 93 93 93 124 150 157 158 140 On Entrance 81 | . 7 17 23 38 38 74 90 90 94 94 94 93 93 93 150 150 158 158 Naked Turns . | . . . . . . . . . . . . . . . . . . . Heaviest Build 104 | 9 28 29 32 32 55 68 68 68 68 68 68 67 67 103 103 104 104 104 Greatest Support 548 | 503 504 512 522 522 527 526 526 527 527 527 527 527 527 548 548 548 548 548 Greatest Overweight (x) . | . . . . . . . . . . . . . . . . . . . Average Overweight (x) . | . . . . . . . . . . . . . . . . . . . Largest Inventory Capacity 100 | 100 100 100 100 100 100 100 100 100 100 100 100 100 100 100 100 100 100 100 Average Capacity 100 | 100 100 100 100 100 100 100 100 100 100 100 100 100 100 100 100 100 100 100 Most Carried 47 | . 5 5 6 6 24 28 28 30 31 31 31 31 31 43 43 43 43 47 Average Carried 33 | . 1 5 5 6 11 27 28 29 30 31 31 31 31 38 43 43 43 43 Final Capacity 100 | 100 100 100 100 100 100 100 100 100 100 100 100 100 100 100 100 100 100 100 Final Carried 43 | . 5 5 6 6 24 28 28 30 31 31 31 31 31 43 43 43 43 43 Class Distribution -------------------- 76% | Wizard-Scout 20% | Wizard-Executioner Dominant Class ---------------- Wizard-Executioner | -10/Materials Wizard-Sprinter | -9/Materials Wizard-Scout | -8/Materials Wizard-Scout | -7/Factory Wizard-Scout | -7/DSF Wizard-Scout | -6/Factory Wizard-Scout | -6/Waste Wizard-Scout | -6/Factory Wizard-Scout | -5/Factory Wizard-Scout | -5/Extension Wizard-Scout | -5/Cetus Wizard-Scout | -5/Archives Wizard-Scout | -4/Factory Wizard-Scout | -4/DSF Wizard-Scout | -3/Research Wizard-Scout | -2/Research Wizard-Scout | -1/Access Wizard-Scout | -1/Command Resources | -11 -10 -9 -8 -7 -7 -6 -6 -6 -5 -5 -5 -5 -4 -4 -3 -2 -1 -1 ----------- Run | Yrd Mat Mat Mat Fac DSF Fac Was Fac Fac Ext Cet Arc Fac DSF Res Res Acc Com Matter Collected 11227 | 136 . 506 687 . 369 225 1380 149 97 19 396 . 71 644 834 853 86 4775 Remotely . | . . . . . . . . . . . . . . . . . . . Salvage Created 6647 | . . 233 321 . 153 . 683 12 23 103 203 197 102 376 442 426 75 3298 Parts 234 | . 4 10 27 . 10 1 2 . . 3 7 1 5 4 25 12 7 116 Haulers Intercepted 2 | . . 1 . . . . . . . . . . 1 . . . . . Recyclers Shooed 2 | . . . . . . . . . . 2 . . . . . . . . Parts Field Recycled . | . . . . . . . . . . . . . . . . . . . Retrieved Matter . | . . . . . . . . . . . . . . . . . . . Parts Self-Destructed . | . . . . . . . . . . . . . . . . . . . Prevented . | . . . . . . . . . . . . . . . . . . . Kills | -11 -10 -9 -8 -7 -7 -6 -6 -6 -5 -5 -5 -5 -4 -4 -3 -2 -1 -1 ------- Run | Yrd Mat Mat Mat Fac DSF Fac Was Fac Fac Ext Cet Arc Fac DSF Res Res Acc Com Combat Hostiles Destroyed 128 | . 2 5 9 . 5 2 6 . 1 7 6 4 . 7 6 5 2 61 Guns 7 | . 2 1 2 . 2 . . . . . . . . . . . . . Cannons 88 | . . 4 7 . 3 2 6 . 1 7 6 4 . 7 6 5 2 28 AOE 32 | . . . . . . . . . . . . . . . . . . 32 Classes Destroyed 22 | . 1 3 2 . 3 1 1 1 . 1 . . 1 . 1 1 . 6 Worker 6 | . . . . . . . . . . . . . 2 . 2 . . 2 Builder 1 | . . . . . . . . . . . . . . . . 1 . . Hauler 2 | . . 1 . . . . . . . . . . 1 . . . . . Mechanic 1 | . . . . . . . . . . . . . . . . . . 1 Operator 3 | . . . 1 . . . . . . . . . 1 . . . . 1 Watcher 3 | . . . . . . . . 1 . . 2 . . . . . . . Swarmer 20 | . 2 . . . . . . . . . . . . . 3 . . 15 Cutter 3 | . . . . . 3 . . . . . . . . . . . . . Saboteur 2 | . . . . . . . . . . . . . . . . . . 2 Grunt 26 | . . 4 5 . . 1 . . . 2 . . . 6 . 1 . 7 Brawler 2 | . . . 1 . . . . . . . . . . . . . . 1 Duelist 2 | . . . . . . 1 . . . . . . . . . . . 1 Protector 1 | . . . . . . . . . . . . . . . . . . 1 Sentry 19 | . . 1 3 . . . . . 1 3 . 4 . . 2 1 . 4 Specialist 2 | . . . . . . . . . . . . . . . . . . 2 Hunter 9 | . . . . . 1 . . . . . . . . . . . . 8 Programmer 13 | . . . . . . . . . . . . . . . 1 1 2 9 Heavy 2 | . . . . . 1 . . . . . . . . 1 . . . . Behemoth 5 | . . . . . . . . . . 2 . . . . . 2 . 1 Compactor 6 | . . . . . . . 6 . . . . . . . . . . . Cetus Guard 6 | . . . . . . . . . . . 6 . . . . . . . M Guard 1 | . . . . . . . . . . . . . . . . . . 1 Combat Programmer 2 | . . . . . . . . . . . . . . . . . . 2 Striker 2 | . . . . . . . . . . . . . . . . . . 2 Executioner 3 | . . . . . . . . . . . . . . . . . . 3 Best Kill Streak 19 | . 2 4 8 . 5 2 4 1 1 4 4 4 4 5 5 3 2 19 Combat Bots Only 19 | . 2 3 8 . 5 2 4 . 1 4 3 4 . 4 5 2 2 19 Max Kills in Single Turn 5 | . 1 2 2 . 1 1 1 1 1 1 1 1 1 1 3 2 1 5 Gunslinging . | . . . . . . . . . . . . . . . . . . . Exploded 5 | . . . . . . . . . . . . . . . . . . 5 Melee . | . . . . . . . . . . . . . . . . . . . Uniques/NPCs Destroyed 2 | . . . . . . . . . . . . . . . . . . 2 MAIN.C Shell (-1/Command) MAIN.C (-1/Command) Combat | -11 -10 -9 -8 -7 -7 -6 -6 -6 -5 -5 -5 -5 -4 -4 -3 -2 -1 -1 -------- Run | Yrd Mat Mat Mat Fac DSF Fac Was Fac Fac Ext Cet Arc Fac DSF Res Res Acc Com Hostile Shots Fired 1162 | . 4 5 12 . 16 3 . . 4 26 65 20 . 42 12 16 5 932 Missed 533 | . 2 1 7 . 10 1 . . 3 19 38 12 . 24 6 6 4 400 Damage Taken 7388 | . 7 22 38 . 133 5 . . 4 33 169 47 . 72 24 89 15 6730 Core 5792 | . 6 14 26 . 90 3 . . 3 22 111 34 . 41 20 65 8 5349 Absorbed by Shields 1633 | . . . . . . 12 . . 6 38 158 48 . 108 36 54 . 1173 Redirected to Core 4952 | . 2 14 17 . 65 3 . . 3 17 104 34 . 40 10 65 8 4570 Redirected to Shielding 100 | . . 4 6 . 24 . . . . 4 21 1 . 11 . . 4 25 Ignored by Resistances 9267 | . 11 32 48 . 163 22 . . 14 93 424 123 . 235 80 181 9 7832 Core Remaining (%) 96 | 100 99 99 99 . 99 . . 99 . . . 98 . 98 98 97 . 71 Volleys Fired 319 | . 2 6 11 . 7 3 18 2 2 15 17 7 9 13 6 16 4 181 Largest 6 | . 3 6 6 . 6 6 6 6 6 6 6 6 6 6 6 6 6 6 Hottest 678 | . 80 202 207 . 207 288 288 288 288 288 288 288 288 288 396 396 396 678 Shots Fired 1576 | . 6 36 66 . 42 18 106 7 12 90 102 42 39 78 36 96 24 776 Gun 54 | . 6 12 22 . 14 . . . . . . . . . . . . . Cannon 1456 | . . 24 44 . 28 18 106 7 12 90 102 42 39 78 36 96 24 710 Launcher 64 | . . . . . . . . . . . . . . . . . . 64 Special 2 | . . . . . . . . . . . . . . . . . . 2 Kinetic 1308 | . 4 36 66 . 42 18 106 7 12 90 102 42 39 78 36 96 24 510 Thermal 202 | . 2 . . . . . . . . . . . . . . . . 200 Explosive 64 | . . . . . . . . . . . . . . . . . . 64 Electromagnetic . | . . . . . . . . . . . . . . . . . . . Robot Hit Streak 43 | . 3 14 27 . 28 12 37 8 17 35 36 24 20 20 6 38 19 43 Robot Miss Streak 2 | . . 1 1 . 1 1 1 . . 1 1 1 1 2 1 1 1 2 Penetration Max 1 | . . . . . . . . . . . . . . . 1 1 1 1 Secondary Targets . | . . . . . . . . . . . . . . . . . . . Shots Hit Robots 1164 | . 3 25 41 . 24 13 90 4 9 74 73 32 14 51 10 80 10 611 Core Hits 427 | . 2 7 13 . 8 4 17 1 3 20 24 12 6 16 10 18 3 263 Critical Kills 35 | . . 1 . . . . . . . . . . . . 7 3 2 22 Critical Parts Destroyed 92 | . . . . . . . . . . . . . . . 2 11 6 73 Critical Strikes 268 | . . 2 3 . . 1 2 1 . 3 7 . . 3 9 39 8 190 Meltdown 1 | . . . . . . . . . . . . . . . . . . 1 Destroy 246 | . . 1 . . . . . . . . . . . . 9 39 8 189 Blast 21 | . . 1 3 . . 1 2 1 . 3 7 . . 3 . . . . Melee Attacks . | . . . . . . . . . . . . . . . . . . . Impact . | . . . . . . . . . . . . . . . . . . . Slashing . | . . . . . . . . . . . . . . . . . . . Piercing . | . . . . . . . . . . . . . . . . . . . Sneak Attacks . | . . . . . . . . . . . . . . . . . . . Combat Hostiles . | . . . . . . . . . . . . . . . . . . . Follow-up Attacks . | . . . . . . . . . . . . . . . . . . . Damage Inflicted 35466 | . 35 489 817 . 481 413 3077 65 295 2484 2356 1068 451 1773 338 1730 311 19283 Guns 679 | . 35 158 299 . 187 . . . . . . . . . . . . . Cannons 27828 | . . 331 518 . 294 413 3077 65 295 2484 2356 1068 451 1773 338 1730 311 12324 Explosions 6959 | . . . . . . . . . . . . . . . . . . 6959 Melee . | . . . . . . . . . . . . . . . . . . . Ramming . | . . . . . . . . . . . . . . . . . . . Kinetic 24259 | . 9 489 817 . 481 413 3077 65 295 2484 2356 1068 451 1773 338 1730 311 8102 Thermal 4248 | . 26 . . . . . . . . . . . . . . . . 4222 Explosive 6959 | . . . . . . . . . . . . . . . . . . 6959 Electromagnetic . | . . . . . . . . . . . . . . . . . . . Impact . | . . . . . . . . . . . . . . . . . . . Slashing . | . . . . . . . . . . . . . . . . . . . Piercing . | . . . . . . . . . . . . . . . . . . . Highest Corruption 41 | . . . . . . . 5 5 . . . . . . . . . 41 Average Corruption 26 | . . . . . . . 5 5 . . . . . . . . . 31 Corruption Purged . | . . . . . . . . . . . . . . . . . . . Corruption Blocked . | . . . . . . . . . . . . . . . . . . . Effects 87 | . . . . . . . 6 2 . . . . . . . . . 79 Message Errors 13 | . . . . . . . 2 . . . . . . . . . . 11 Matter Fused 13 | . . . . . . . 2 . . . . . . . . . . 11 Heat Flow Errors 2 | . . . . . . . . 1 . . . . . . . . . 1 Energy Discharges 1 | . . . . . . . . . . . . . . . . . . 1 Parts Rejected 2 | . . . . . . . . . . . . . . . . . . 2 Data Loss (minor) 9 | . . . . . . . . 1 . . . . . . . . . 8 Data Loss (major) 1 | . . . . . . . . . . . . . . . . . . 1 Alerts 1 | . . . . . . . . . . . . . . . . . . 1 Misdirections 16 | . . . . . . . . . . . . . . . . . . 16 Weapon Failures 29 | . . . . . . . 2 . . . . . . . . . . 27 Overload Shots . | . . . . . . . . . . . . . . . . . . . Overflow Damage 426 | . . . . . . 12 . . . 65 14 21 9 35 . . . 270 Projectiles 256 | . . . . . . 12 . . . 65 14 21 9 35 . . . 100 Explosions 170 | . . . . . . . . . . . . . . . . . . 170 Melee . | . . . . . . . . . . . . . . . . . . . Knockbacks 68 | . . 1 5 . 2 9 . 1 . 1 . 1 . 6 2 4 2 34 Impact . | . . . . . . . . . . . . . . . . . . . Kinetic 67 | . . 1 5 . 2 9 . 1 . 1 . 1 . 6 2 4 1 34 Secondary 1 | . . . . . . . . . . . . . . . . . 1 . Self-Inflicted Damage 186 | . . . . . . . . . . . . . . . . . . 186 Shots 7 | . . . . . . . . . . . . . . . . . . 7 Rammed . | . . . . . . . . . . . . . . . . . . . Targets Rammed . | . . . . . . . . . . . . . . . . . . . Kicked . | . . . . . . . . . . . . . . . . . . . Crushed . | . . . . . . . . . . . . . . . . . . . Highest Temperature . | . . . . . . . . . . . . . . . . . . . Average Temperature . | . . . . . . . . . . . . . . . . . . . Received Heat Transfer 531 | . . 24 36 . . 5 . . 3 15 49 16 . 25 4 51 . 303 Siege Activations . | . . . . . . . . . . . . . . . . . . . Robots Corrupted . | . . . . . . . . . . . . . . . . . . . Combat Hostiles . | . . . . . . . . . . . . . . . . . . . Parts Fried . | . . . . . . . . . . . . . . . . . . . Impact Corruptions . | . . . . . . . . . . . . . . . . . . . Robots Melted 1 | . . . . . . . . . . . . . . . . . . 1 Combat Hostiles 1 | . . . . . . . . . . . . . . . . . . 1 Parts Melted 3 | . . . . . . . . . . . . . . . . . . 3 Heat Transferred 2506 | . 50 . . . . . . . . . . . . . . . . 2456 Parts Sabotaged . | . . . . . . . . . . . . . . . . . . . Parts Stolen . | . . . . . . . . . . . . . . . . . . . Parts Stripped . | . . . . . . . . . . . . . . . . . . . Power Chain Reactions . | . . . . . . . . . . . . . . . . . . . Alert | -11 -10 -9 -8 -7 -7 -6 -6 -6 -5 -5 -5 -5 -4 -4 -3 -2 -1 -1 ------- Run | Yrd Mat Mat Mat Fac DSF Fac Was Fac Fac Ext Cet Arc Fac DSF Res Res Acc Com Peak Influence 824 | . 80 217 216 70 157 131 36 75 45 252 300 225 109 230 345 338 284 824 Initial 153 | . . 24 65 70 37 61 31 19 . 16 105 84 54 58 96 145 153 138 Average 220 | . 54 123 111 70 117 75 34 29 22 176 227 170 70 150 231 250 198 506 Maximum Alert Level 5 | . . 1 1 . . . . . . 1 1 1 . 1 1 1 1 5 Low Security (%) 47 | 100 100 87 88 100 100 100 100 100 100 47 20 79 100 70 28 28 67 8 Level 1 20 | . . 12 11 . . . . . . 52 80 20 . 29 72 71 32 3 Level 2 16 | . . . . . . . . . . . . . . . . . . 45 Level 3 4 | . . . . . . . . . . . . . . . . . . 13 Level 4 2 | . . . . . . . . . . . . . . . . . . 7 Level 5 8 | . . . . . . . . . . . . . . . . . . 23 High Security . | . . . . . . . . . . . . . . . . . . . Max Security . | . . . . . . . . . . . . . . . . . . . Squads Dispatched 5 | . . . 1 . 2 . . . . . . . . 1 . . . 1 Investigation . | . . . . . . . . . . . . . . . . . . . Extermination 1 | . . . . . . . . . . . . . . . . . . 1 Reinforcement 4 | . . . 1 . 2 . . . . . . . . 1 . . . . Assault . | . . . . . . . . . . . . . . . . . . . Garrison . | . . . . . . . . . . . . . . . . . . . Intercept . | . . . . . . . . . . . . . . . . . . . Searches Triggered . | . . . . . . . . . . . . . . . . . . . Construction Impeded . | . . . . . . . . . . . . . . . . . . . Haulers Reinforced . | . . . . . . . . . . . . . . . . . . . Active Scanning Responses . | . . . . . . . . . . . . . . . . . . . Cargo Convoy Interrupts . | . . . . . . . . . . . . . . . . . . . Stealth | -11 -10 -9 -8 -7 -7 -6 -6 -6 -5 -5 -5 -5 -4 -4 -3 -2 -1 -1 --------- Run | Yrd Mat Mat Mat Fac DSF Fac Was Fac Fac Ext Cet Arc Fac DSF Res Res Acc Com Distress Signals 36 | . . . . . . . . . . . . . . . . . 1 35 Communications Jammed 65 | . . . . . . . . . . 2 . . . . 15 1 3 44 Distress Signals 64 | . . . . . . . . . . 2 . . . . 15 1 2 44 Times Spotted 205 | . 4 5 6 . 4 2 6 6 1 9 8 4 2 7 8 7 7 119 Peak Tracking Total 26 | . 3 1 1 . 4 1 3 4 1 2 4 2 1 3 3 2 5 26 Tactical Retreats 13 | . . . . . . . 1 1 . . . . . . . . . 11 Traps | -11 -10 -9 -8 -7 -7 -6 -6 -6 -5 -5 -5 -5 -4 -4 -3 -2 -1 -1 ------- Run | Yrd Mat Mat Mat Fac DSF Fac Was Fac Fac Ext Cet Arc Fac DSF Res Res Acc Com Traps Triggered 6 | . . . . . 4 1 . . . . . . . . . . . 1 Indirectly . | . . . . . . . . . . . . . . . . . . . Trap Hack Attempts . | . . . . . . . . . . . . . . . . . . . Triggered . | . . . . . . . . . . . . . . . . . . . Disarmed . | . . . . . . . . . . . . . . . . . . . Reprogrammed . | . . . . . . . . . . . . . . . . . . . Reused . | . . . . . . . . . . . . . . . . . . . Traps Extracted . | . . . . . . . . . . . . . . . . . . . Installed . | . . . . . . . . . . . . . . . . . . . Triggered . | . . . . . . . . . . . . . . . . . . . Machines | -11 -10 -9 -8 -7 -7 -6 -6 -6 -5 -5 -5 -5 -4 -4 -3 -2 -1 -1 ---------- Run | Yrd Mat Mat Mat Fac DSF Fac Was Fac Fac Ext Cet Arc Fac DSF Res Res Acc Com Machines Disabled 11 | . . . 2 . . . . . . 1 . 1 . 1 . . . 6 Max in Single Turn 1 | . . . 1 . . . . . . 1 . 1 . 1 . . . 1 Garrison Access 2 | . . . . . . . . 1 1 . . . . . . . . . Machines Repaired . | . . . . . . . . . . . . . . . . . . . Machines Dismantled . | . . . . . . . . . . . . . . . . . . . Machines Sabotaged . | . . . . . . . . . . . . . . . . . . . Overloaded Fab Kills . | . . . . . . . . . . . . . . . . . . . Hacking | -11 -10 -9 -8 -7 -7 -6 -6 -6 -5 -5 -5 -5 -4 -4 -3 -2 -1 -1 --------- Run | Yrd Mat Mat Mat Fac DSF Fac Was Fac Fac Ext Cet Arc Fac DSF Res Res Acc Com Machines Accessed 19 | . . 1 1 2 . 1 . 2 1 1 1 . 2 . 1 1 4 1 Terminals 17 | . . 1 1 2 . 1 . 1 . 1 1 . 2 . 1 1 4 1 Fabricators . | . . . . . . . . . . . . . . . . . . . Repair Stations . | . . . . . . . . . . . . . . . . . . . Recycling Units . | . . . . . . . . . . . . . . . . . . . Scanalyzers . | . . . . . . . . . . . . . . . . . . . Garrison Access 2 | . . . . . . . . 1 1 . . . . . . . . . Total Hacks 26 | . . 1 5 2 . 1 . 5 1 1 1 . 2 . 1 1 4 1 Successful 26 | . . 1 5 2 . 1 . 5 1 1 1 . 2 . 1 1 4 1 Failed . | . . . . . . . . . . . . . . . . . . . Catastrophic . | . . . . . . . . . . . . . . . . . . . Database Lockouts . | . . . . . . . . . . . . . . . . . . . Manual 16 | . . 1 5 1 . . . 4 . . . . 1 . 1 1 2 . Terminals 24 | . . 1 5 2 . 1 . 4 . 1 1 . 2 . 1 1 4 1 Fabricators . | . . . . . . . . . . . . . . . . . . . Repair Stations . | . . . . . . . . . . . . . . . . . . . Recycling Units . | . . . . . . . . . . . . . . . . . . . Scanalyzers . | . . . . . . . . . . . . . . . . . . . Garrison Access 2 | . . . . . . . . 1 1 . . . . . . . . . Terminal Hacks 24 | . . 1 5 2 . 1 . 4 . 1 1 . 2 . 1 1 4 1 Open Door 6 | . . . . . . . . . . 1 1 . . . . . 3 1 Open DSF 3 | . . . . 1 . 1 . . . . . . 1 . . . . . Level Access Points 7 | . . 1 1 1 . . . 1 . . . . 1 . 1 1 . . Branch Access Points 2 | . . . . . . . . 1 . . . . . . . . 1 . Unreport Threat 6 | . . . 4 . . . . 2 . . . . . . . . . . Fabricator Hacks . | . . . . . . . . . . . . . . . . . . . Repair Station Hacks . | . . . . . . . . . . . . . . . . . . . Recycling Unit Hacks . | . . . . . . . . . . . . . . . . . . . Scanalyzer . | . . . . . . . . . . . . . . . . . . . Garrison Access Hacks 2 | . . . . . . . . 1 1 . . . . . . . . . Seal Access 2 | . . . . . . . . 1 1 . . . . . . . . . Unauthorized Hacks . | . . . . . . . . . . . . . . . . . . . Terminals . | . . . . . . . . . . . . . . . . . . . Fabricators . | . . . . . . . . . . . . . . . . . . . Repair Stations . | . . . . . . . . . . . . . . . . . . . Recycling Units . | . . . . . . . . . . . . . . . . . . . Scanalyzers . | . . . . . . . . . . . . . . . . . . . Garrison Access . | . . . . . . . . . . . . . . . . . . . Data Cores Recovered 2 | . . . 1 . . . . . . . . . . . . . . 1 Used . | . . . . . . . . . . . . . . . . . . . Hacking Detections 2 | . . . . 1 . . . . . . . . . . . . . 1 Full Trace Events . | . . . . . . . . . . . . . . . . . . . Feedback Events . | . . . . . . . . . . . . . . . . . . . Feedback Blocked . | . . . . . . . . . . . . . . . . . . . Robot Schematics Acquired . | . . . . . . . . . . . . . . . . . . . Robots Built . | . . . . . . . . . . . . . . . . . . . Authchips . | . . . . . . . . . . . . . . . . . . . Time . | . . . . . . . . . . . . . . . . . . . Total Robot Build Rating . | . . . . . . . . . . . . . . . . . . . Part Schematics Acquired . | . . . . . . . . . . . . . . . . . . . Parts Built . | . . . . . . . . . . . . . . . . . . . Authchips . | . . . . . . . . . . . . . . . . . . . Time . | . . . . . . . . . . . . . . . . . . . Total Part Build Rating . | . . . . . . . . . . . . . . . . . . . Parts Repaired . | . . . . . . . . . . . . . . . . . . . Time . | . . . . . . . . . . . . . . . . . . . Parts Recycled . | . . . . . . . . . . . . . . . . . . . Recycled Matter . | . . . . . . . . . . . . . . . . . . . Retrieved Matter . | . . . . . . . . . . . . . . . . . . . Retrieved Components . | . . . . . . . . . . . . . . . . . . . Parts Scanalyzed . | . . . . . . . . . . . . . . . . . . . Part Schematics Acquired . | . . . . . . . . . . . . . . . . . . . Parts Damaged . | . . . . . . . . . . . . . . . . . . . Bothacking | -11 -10 -9 -8 -7 -7 -6 -6 -6 -5 -5 -5 -5 -4 -4 -3 -2 -1 -1 ------------ Run | Yrd Mat Mat Mat Fac DSF Fac Was Fac Fac Ext Cet Arc Fac DSF Res Res Acc Com Used RIF Installer . | . . . . . . . . . . . . . . . . . . . Robots Hacked 1 | . . . . . . . . . . . . . . . . . . 1 Non-combat . | . . . . . . . . . . . . . . . . . . . Combat . | . . . . . . . . . . . . . . . . . . . Robot Hacks Applied . | . . . . . . . . . . . . . . . . . . . Manual 1 | . . . . . . . . . . . . . . . . . . 1 Relay Couplers Released . | . . . . . . . . . . . . . . . . . . . Fabnet Peak Effective % . | . . . . . . . . . . . . . . . . . . . Robots Rewired . | . . . . . . . . . . . . . . . . . . . Allies Hacked . | . . . . . . . . . . . . . . . . . . . Hacks Repelled . | . . . . . . . . . . . . . . . . . . . Allies | -11 -10 -9 -8 -7 -7 -6 -6 -6 -5 -5 -5 -5 -4 -4 -3 -2 -1 -1 -------- Run | Yrd Mat Mat Mat Fac DSF Fac Was Fac Fac Ext Cet Arc Fac DSF Res Res Acc Com Total Allies 1 | . . . . . . . . . . 1 . . . . . . . . Largest Group 1 | . . . . . . . . . . 1 1 1 . . . . . . Highest-Rated Group 159 | . . . . . . . . . . 159 143 143 . . . . . . Highest-Rated Ally 159 | . . . . . . . . . . 159 143 143 . . . . . . Total Orders . | . . . . . . . . . . . . . . . . . . . Ally Attacks 15 | . . . . . . . . . . 8 7 . . . . . . . Total Damage 577 | . . . . . . . . . . 317 260 . . . . . . . Kills 5 | . . . . . . . . . . 3 2 . . . . . . . Allies Corrupted . | . . . . . . . . . . . . . . . . . . . Allies Melted . | . . . . . . . . . . . . . . . . . . . Intel | -11 -10 -9 -8 -7 -7 -6 -6 -6 -5 -5 -5 -5 -4 -4 -3 -2 -1 -1 ------- Run | Yrd Mat Mat Mat Fac DSF Fac Was Fac Fac Ext Cet Arc Fac DSF Res Res Acc Com Robot Analysis Total . | . . . . . . . . . . . . . . . . . . . Derelict Logs Recovered . | . . . . . . . . . . . . . . . . . . . Drone Launches . | . . . . . . . . . . . . . . . . . . . Drone Recoveries . | . . . . . . . . . . . . . . . . . . . Exploration | -11 -10 -9 -8 -7 -7 -6 -6 -6 -5 -5 -5 -5 -4 -4 -3 -2 -1 -1 ------------- Run | Yrd Mat Mat Mat Fac DSF Fac Was Fac Fac Ext Cet Arc Fac DSF Res Res Acc Com Turns Passed 2755 | 34 88 113 109 10 94 52 110 72 30 235 165 39 75 144 75 142 176 992 Spaces Moved 4472 | 47 153 274 226 41 170 155 115 307 104 306 143 35 224 175 130 233 421 1213 Core 80 | 47 33 . . . . . . . . . . . . . . . . . Treads . | . . . . . . . . . . . . . . . . . . . Legs . | . . . . . . . . . . . . . . . . . . . Wheels . | . . . . . . . . . . . . . . . . . . . Hover . | . . . . . . . . . . . . . . . . . . . Flight 4392 | . 120 274 226 41 170 155 115 307 104 306 143 35 224 175 130 233 421 1213 Fastest Speed 20 | 50 40 30 24 24 20 20 20 20 20 20 20 20 20 20 39 39 39 39 Average Speed 31 | 50 42 31 26 24 20 20 20 20 20 20 20 20 20 36 39 39 39 39 Slowest Speed 50 | 50 50 40 30 24 24 20 20 20 20 20 20 20 20 45 39 39 39 39 Overloaded Moves . | . . . . . . . . . . . . . . . . . . . Propulsion Burnouts . | . . . . . . . . . . . . . . . . . . . Robots Hopped 44 | . 2 3 3 . . . . 2 2 2 . . . . 1 3 7 19 Cave-ins Triggered . | . . . . . . . . . . . . . . . . . . . Exploration Rate (%) 37 | 4 42 28 27 1 97 6 83 16 5 56 84 86 13 94 7 13 16 40 Regions Visited 18 Branch Regions 4 Pre-discovered Areas . | . . . . . . . . . . . . . . . . . . . Known Exits Taken 14 | 1 1 1 1 1 . . . 1 1 1 1 1 1 . 1 1 1 . Unknown Exits Taken . | . . . . . . . . . . . . . . . . . . . Scrap Searched . | . . . . . . . . . . . . . . . . . . . Spaces Dug 8 | . . . . . . . . 1 . . . . 7 . . . . . Terrain Destroyed 530 | . . 5 56 . . 5 5 4 . 5 13 8 15 8 12 1 . 393 Melee . | . . . . . . . . . . . . . . . . . . . Projectile 103 | . . 5 13 . . 5 5 4 . 5 13 8 15 8 11 1 . 10 AOE 425 | . . . 43 . . . . . . . . . . . . . . 382 Terrain Rammed . | . . . . . . . . . . . . . . . . . . . Walls Destroyed . | . . . . . . . . . . . . . . . . . . . Machines Disabled . | . . . . . . . . . . . . . . . . . . . Actions | -11 -10 -9 -8 -7 -7 -6 -6 -6 -5 -5 -5 -5 -4 -4 -3 -2 -1 -1 --------- Run | Yrd Mat Mat Mat Fac DSF Fac Was Fac Fac Ext Cet Arc Fac DSF Res Res Acc Com Total 5099 | 53 168 280 240 40 203 166 147 310 104 431 227 45 233 216 134 248 417 1437 Wait 231 | . 2 . . . . . 15 . . 113 68 4 . . . 2 . 27 Move 4372 | 46 148 268 219 40 169 155 114 302 99 301 142 34 224 174 127 226 407 1177 Hop 39 | . 2 2 3 . . . . 2 2 2 . . . . 1 3 6 16 Pick Up 31 | . . . 1 . 11 4 . 2 1 . . . . 6 . . . 6 Fast Attach 48 | 7 9 4 4 . 7 3 . 1 . . . . . 10 . 1 . 2 Attach 14 | . . . . . . . . . . . . . . . . . . 14 Detach 22 | . 5 . . . . . . . . . . . . 6 . . . 11 Swap 8 | . . . 1 . 7 . . . . . . . . . . . . . Drop 15 | . . . 1 . 2 1 . 1 . . . . . 7 . . . 3 Fire 319 | . 2 6 11 . 7 3 18 2 2 15 17 7 9 13 6 16 4 181 Melee . | . . . . . . . . . . . . . . . . . . . Ram . | . . . . . . . . . . . . . . . . . . . Kick . | . . . . . . . . . . . . . . . . . . . Crush . | . . . . . . . . . . . . . . . . . . . Escape Stasis . | . . . . . . . . . . . . . . . . . . . Rewire . | . . . . . . . . . . . . . . . . . . . Trap . | . . . . . . . . . . . . . . . . . . . Miscellaneous . | . . . . . . . . . . . . . . . . . . . Route ------- -11/Scrapyard -10/Materials (discovered 2 exits: *Mat / *Min) -9/Materials (discovered 3 exits: *Mat x3) -8/Materials (discovered 3 exits: *Fac x3) -7/Factory (discovered 5 exits: Fac x4 / DSF) -7/DSF -6/Factory -6/Waste -6/Factory (discovered 6 exits: *Fac x4 / Low x2) -5/Factory (discovered 2 exits: *Upp / *Ext) -5/Extension (discovered 3 exits: *Fac x2 / *Cet) -5/Cetus (discovered 3 exits: *Fac x2 / *Arc) -5/Archives (discovered 2 exits: *Fac / *Hub) -4/Factory (discovered 5 exits: *Res x4 / DSF) -4/DSF -3/Research (discovered 4 exits: *Res x3 / *Tes) -2/Research (discovered 4 exits: *Acc x3 / Qua) -1/Access (discovered 2 exits: Sur / *Com) -1/Command (discovered 2 exits: *Sur x2) 0b11 Command History --------- Turn | Location | Event 1 | -11/Scrapyard | Upgraded with Propulsion slot (x5) 1 | -11/Scrapyard | Upgraded with Utility slot (x12) 1 | -11/Scrapyard | Upgraded with Weapon slot (x5) 2 | -11/Scrapyard | Identified exit to Materials 2 | -11/Scrapyard | Discovered exit to Materials (range 19) 35 | -11/Scrapyard | Entered Materials 59 | -10/Materials | Identified exit to Materials 59 | -10/Materials | Discovered exit to Materials (range 26) 80 | -10/Materials | Identified exit to Mines 80 | -10/Materials | Discovered exit to Mines (range 21) 123 | -10/Materials | Entered another Materials area 125 | -9/Materials | Reached level 2 125 | -9/Materials | Reached level 3 223 | -9/Materials | Identified exit to Materials 236 | -9/Materials | Entered another Materials area 238 | -8/Materials | Reached level 4 238 | -8/Materials | Reached level 5 238 | -8/Materials | Reached level 6 288 | -8/Materials | Reached level 7 292 | -8/Materials | Identified exit to Factory 345 | -8/Materials | Entered Factory 347 | -7/Factory | Reached level 8 347 | -7/Factory | Reached level 9 347 | -7/Factory | Identified exit to Factory 353 | -7/Factory | Destroyed 8 combat bots 355 | -7/Factory | Identified exit to DSF 355 | -7/Factory | Entered DSF 357 | -7/DSF | Reached level 10 371 | -7/DSF | Additional patrols routed to DSF 381 | -7/DSF | Reached level 11 413 | -7/DSF | Discovered exit to Factory (range 14) 449 | -7/DSF | Entered Factory 451 | -6/Factory | Reached level 12 489 | -6/Factory | Reached level 13 501 | -6/Factory | Sucked down chute 501 | -6/Factory | Entered Waste 502 | -6/Waste | Build established: Wizard-Scout 505 | -6/Waste | Spotted C-40 Crusher 505 | -6/Waste | Spotted C-40 Crusher 514 | -6/Waste | Spotted C-40 Crusher 516 | -6/Waste | EMP discharged 521 | -6/Waste | Destroyed C-40 Crusher 538 | -6/Waste | Spotted C-40 Crusher 543 | -6/Waste | Destroyed C-40 Crusher 550 | -6/Waste | Spotted C-40 Crusher 551 | -6/Waste | Destroyed C-40 Crusher 566 | -6/Waste | Destroyed C-40 Crusher 566 | -6/Waste | Spotted C-40 Crusher 570 | -6/Waste | Destroyed C-40 Crusher 594 | -6/Waste | Destroyed C-40 Crusher 607 | -6/Waste | Identified exit to Factory 607 | -6/Waste | Discovered exit to Factory (range 18) 611 | -6/Waste | Entered Factory 666 | -6/Factory | Identified exit to Factory 666 | -6/Factory | Identified exit to Lower Caves 683 | -6/Factory | Entered another Factory area 685 | -5/Factory | Reached level 14 685 | -5/Factory | Reached level 15 688 | -5/Factory | Identified exit to Upper Caves 688 | -5/Factory | Discovered exit to Upper Caves (range 51) 706 | -5/Factory | Identified exit to Extension 706 | -5/Factory | Discovered exit to Extension (range 32) 713 | -5/Factory | Entered Extension 715 | -5/Extension | Reached level 16 723 | -5/Extension | Rescued A7 783 | -5/Extension | Spotted B-75 Beast 783 | -5/Extension | Spotted B-75 Beast 804 | -5/Extension | Destroyed B-75 Beast 810 | -5/Extension | Identified exit to Factory 810 | -5/Extension | Discovered exit to Factory (range 16) 817 | -5/Extension | Destroyed B-75 Beast 825 | -5/Extension | Reached level 17 846 | -5/Extension | Identified exit to Cetus 846 | -5/Extension | Discovered exit to Cetus (range 66) 846 | -5/Extension | Discovered exit to Factory (range 64) 948 | -5/Extension | Entered Cetus 948 | -5/Cetus | Accompanied by 1 ally (A7) 948 | -5/Cetus | Spotted Cetus Guard 948 | -5/Cetus | Spotted Cetus Guard 948 | -5/Cetus | Spotted Cetus Guard 948 | -5/Cetus | Spotted Cetus Guard 953 | -5/Cetus | Acquired a Cetus Manufacturing Module code from A7 956 | -5/Cetus | Discovered exit to Factory (range 37) 961 | -5/Cetus | Allies destroyed Cetus Guard 965 | -5/Cetus | Destroyed Cetus Guard 973 | -5/Cetus | Destroyed Cetus Guard 981 | -5/Cetus | Destroyed Cetus Guard 1017 | -5/Cetus | Escorted A7 to Cetus Mainframe 1035 | -5/Cetus | Identified exit to Archives 1035 | -5/Cetus | Discovered exit to Archives (range 24) 1038 | -5/Cetus | Discovered exit to Factory (range 36) 1038 | -5/Cetus | Spotted Cetus Guard 1038 | -5/Cetus | Spotted Cetus Guard 1041 | -5/Cetus | Spotted Cetus Guard 1041 | -5/Cetus | Spotted Cetus Guard 1053 | -5/Cetus | Destroyed Cetus Guard 1061 | -5/Cetus | Reached level 18 1061 | -5/Cetus | Destroyed Cetus Guard 1068 | -5/Cetus | Allies destroyed Cetus Guard 1074 | -5/Cetus | Destroyed Cetus Guard 1080 | -5/Cetus | Met Revision 17 1113 | -5/Cetus | Entered Archives 1113 | -5/Archives | Accompanied by 1 ally (A7) 1118 | -5/Archives | Received a hacking code to weaken MAIN.C 1120 | -5/Archives | Identified exit to Hub_04(d) 1120 | -5/Archives | Discovered exit to Hub_04(d) (range 24) 1121 | -5/Archives | Discovered exit to Factory (range 18) 1149 | -5/Archives | Unable to access archive contents 1152 | -5/Archives | Entered Factory 1154 | -4/Factory | Reached level 19 1154 | -4/Factory | Reached level 20 1167 | -4/Factory | Identified exit to Research 1178 | -4/Factory | Spotted B-86 Titan 1227 | -4/Factory | Identified exit to DSF 1227 | -4/Factory | Entered DSF 1227 | -4/DSF | Discovered exit to Research (range 31) 1229 | -4/DSF | Reached level 21 1250 | -4/DSF | Additional patrols routed to DSF 1371 | -4/DSF | Entered Research 1373 | -3/Research | Reached level 22 1373 | -3/Research | Reached level 23 1376 | -3/Research | Identified exit to Research 1437 | -3/Research | Identified exit to Testing 1437 | -3/Research | Discovered exit to Testing (range 24) 1446 | -3/Research | Entered another Research area 1448 | -2/Research | Reached level 24 1448 | -2/Research | Reached level 25 1448 | -2/Research | Reached level 26 1503 | -2/Research | Spotted B-90 Cyclops 1510 | -2/Research | Destroyed B-90 Cyclops 1530 | -2/Research | Identified exit to Access 1549 | -2/Research | Spotted B-90 Cyclops 1551 | -2/Research | Identified exit to Quarantine 1551 | -2/Research | Discovered exit to Quarantine (range 19) 1571 | -2/Research | Destroyed B-90 Cyclops 1588 | -2/Research | Entered Access 1590 | -1/Access | Reached level 27 1590 | -1/Access | Reached level 28 1596 | -1/Access | Identified exit to Command 1694 | -1/Access | Identified exit to Surface 1694 | -1/Access | Discovered exit to Surface (range 19) 1721 | -1/Access | Reached level 29 1764 | -1/Access | Entered Command 1766 | -1/Command | Reached level 30 1766 | -1/Command | Reached level 31 1775 | -1/Command | Found Fusion Bomb Launcher 1874 | -1/Command | Discovered exit to Surface (range 19) 1874 | -1/Command | Spotted Alpha 7 1874 | -1/Command | Spotted Alpha 7 1874 | -1/Command | Spotted Striker 1874 | -1/Command | Spotted Striker 1874 | -1/Command | Spotted Executioner 1874 | -1/Command | Spotted Executioner 1874 | -1/Command | Spotted Executioner 1874 | -1/Command | Spotted Executioner 1876 | -1/Command | Destroyed Striker 1876 | -1/Command | Destroyed Executioner 1877 | -1/Command | Spotted B-99 Colossus 1879 | -1/Command | Destroyed Striker 1887 | -1/Command | Destroyed Executioner 1900 | -1/Command | Destroyed Executioner 1921 | -1/Command | Destroyed 9 combat bots 1939 | -1/Command | Destroyed B-99 Colossus 1955 | -1/Command | Spotted B-99 Colossus 1971 | -1/Command | Reached level 32 2059 | -1/Command | Spotted M Guard 2059 | -1/Command | Spotted M Guard 2059 | -1/Command | Spotted Combat Programmer 2059 | -1/Command | Spotted Combat Programmer 2094 | -1/Command | System corruption reached 10% 2111 | -1/Command | Destroyed Combat Programmer 2123 | -1/Command | Destroyed Combat Programmer 2126 | -1/Command | Destroyed M Guard 2198 | -1/Command | Met MAIN.C 2198 | -1/Command | Reached level 33 2198 | -1/Command | Hacked MAIN.C using A7's code 2210 | -1/Command | 0b10 Conduit disabled 2238 | -1/Command | MAIN.C activated Command garrisons 2243 | -1/Command | Reached level 34 2243 | -1/Command | Destroyed MAIN.C Shell 2340 | -1/Command | System corruption reached 30% 2394 | -1/Command | Lost 5 parts (1p4u) 2419 | -1/Command | Destroyed 19 combat bots 2429 | -1/Command | Reached level 35 2467 | -1/Command | Reached level 36 2467 | -1/Command | Destroyed MAIN.C 2469 | -1/Command | All MAIN.C guards destroyed 2488 | -1/Command | Destroyed 15 combat bots 2511 | -1/Command | Spotted B-99 Colossus 2586 | -1/Command | Build established: Wizard-Executioner 2586 | -1/Command | Destroyed 7 combat bots 2748 | -1/Command | Discovered exit to Surface (range 14) 2756 | *** | Establishing 0b11! Last Messages --------------- 02652_ The unstable cave ceiling collapses. 02653_ Dropped Particle Reactor. 02661_ The unstable cave ceiling collapses. 02667_ System corrupted: Matter fused (-8). 02669_ The unstable cave ceiling collapses. 02683_ System corrupted: Component data lost. 02683_ The unstable cave ceiling collapses. 02683_ K-01 Serf collects debris. 02700_ System corrupted: Matter fused (-9). 02717_ HA>LTXIY80IMX1LD/6MS 02733_ System corrupted: Nova Cannon rejected. 02735_ B-99 Colossus activates siege mode. 02741_ Penetrated by Slug. 02741_ Slug penetrates Wall. 02742_ B-99 Colossus exits siege mode. 02743_ Acquired 11 matter. 02744_ Slug penetrates Earth. 02744_ Slug penetrates Wall. 02748_ EXIT=FOUND: SURFACE 02751_ G-73 Enforcer destroyed. Map ----- +----------------------------------------------------+ | ?????????????????# #??? # = !=== = | | ?????????????????# #???? # !=[=*####+###### | | ????????????????## ##???? # !![!*#?????????# | | ????????????????# #######/" ^ !!%%|##????????# | | ????????????????# %!|[%#????????# | | ????????????????# ! !["#????????? | | ????????????????# %! ##????????? | | ????????????????# ##### != #?????????? | | ????????????????#######???# " =! #?????????? | | ??????????????????????????# !"% #?????????? | | ??????????????????????????# %%=" = #?????????? | | ??????????????????????????# =!! % #?????????? | | ??????????????????????????##"###+#### ##????????? | | ?????????????????????????? [??????# "#????????? | | ???????????????????????? =[??????# "#????????? | | ??????????????????????? """"=%"?????# ##????????? | | ????????????????????? """"=="?????# #?????????? | | ???????????????????? """"[%"?????# #?????????? | | ?????????????????? """"%*""????# #?????????? | | ?????????????????# ?= !%*[ ????# #?????????? | | ?????????????????#? ????# #?????????? | | ??????????????????########?######+#?# #????=#???? | | ???????????????????????########## ### #?? #???? | | ???????????????????????# #!= #???? | | ???????????????????????# +%[ #???? | | ???????????????????????# @ ########### #% #???? | | ???????????????????????# #?????????# #?? #???? | | ???????????????????????#####?????????# #???? #???? | | ?????????????????????????????????????# #?????????? | | ?????????????????????????????????????# #?????????? | | ?????????????????????????????????????# #?????????? | | ?????????????????????????????????????# #?????????? | | ?????????????????????????????????????# #?????????? | | ?????????????????????????????????????# #?????????? | | ????????????????????????????????????? ?????????? | | ?????????????????????????????????????"" ?????????? | | ?????????????????????????????????????T" ?????????? | | ????????????????????????????????????? ?????????? | | ????????????????????????????????????? ?????????? | | ?????????????????????????????????????#+#?????????? | | ?????????????????????????????????????????????????? | | ?????????????????????????????????????????????????? | | ?????????????????????????????????????????????????? | | ?????????????????????????????????????????????????? | | ?????????????????????????????????????????????????? | | ?????????????????????????????????????????????????? | | ?????????????????????????????????????????????????? | | ?????????????????????????????????????????????????? | | ?????????????????????????????????????????????????? | | ?????????????????????????????????????????????????? | +----------------------------------------------------+ Best States ------------- Heat Dissipation 1003 Energy Generation 2018 Energy Capacity 10240 Matter Stores 2162 Matter Capacity 3750 Sight Range 67 Robot Scan Range 200 Terrain Scan Range 20 Terrain Scan Density 3710 ECM Strength 1 Jamming Range 16 Cloak Strength 2 Resistance: KI 55 Resistance: TH 55 Resistance: EX 55 Resistance: EM 35 Resistance: I 35 Resistance: S 35 Resistance: P 35 Propulsion Shielding 33 Weapon Shielding 33 Weapon Cycling 25 Evasion (%) 74 Energy Filtering 30 Offensive Hacking 740 Defensive Hacking 800 Item Schematics ----------------- None Robot Schematics ------------------ None Fabricated ------------ Nothing Alien Tech Used ----------------- None Achievements -------------- Poison In The Code Challenges ------------ None RPGLIKE | -11 -10 -9 -8 -7 -7 -6 -6 -6 -5 -5 -5 -5 -4 -4 -3 -2 -1 -1 --------- Run | Yrd Mat Mat Mat Fac DSF Fac Was Fac Fac Ext Cet Arc Fac DSF Res Res Acc Com Levels Raised 35 | . . 2 4 2 2 2 . . 2 2 1 . 2 1 2 3 3 7 XP Earned 58781 | 6000 250 4112 5517 3292 2223 2812 200 35 3486 2296 1792 900 1984 2050 3399 4078 3628 10727 XP Spent -966684795 | -966684795 . . . . . . . . . . . . . . . . . . Upgrades 2169 | 2169 . . . . . . . . . . . . . . . . . . Propulsion Slot 5 | 5 . . . . . . . . . . . . . . . . . . Utility Slot 12 | 12 . . . . . . . . . . . . . . . . . . Weapon Slot 5 | 5 . . . . . . . . . . . . . . . . . . Core Integrity 388 | 388 . . . . . . . . . . . . . . . . . . Heat Dissipation 163 | 163 . . . . . . . . . . . . . . . . . . Energy Generation 399 | 399 . . . . . . . . . . . . . . . . . . Energy Storage 198 | 198 . . . . . . . . . . . . . . . . . . Matter Storage 64 | 64 . . . . . . . . . . . . . . . . . . Mass Support 100 | 100 . . . . . . . . . . . . . . . . . . Inventory Capacity 100 | 100 . . . . . . . . . . . . . . . . . . Sight Range 51 | 51 . . . . . . . . . . . . . . . . . . Sensor Range 93 | 93 . . . . . . . . . . . . . . . . . . Terrain Scan Density 37 | 37 . . . . . . . . . . . . . . . . . . Ranged Accuracy 162 | 162 . . . . . . . . . . . . . . . . . . Melee Accuracy 64 | 64 . . . . . . . . . . . . . . . . . . Hack Attack % 144 | 144 . . . . . . . . . . . . . . . . . . Hack Defense % 160 | 160 . . . . . . . . . . . . . . . . . . KI Resistance % 4 | 4 . . . . . . . . . . . . . . . . . . TH Resistance % 4 | 4 . . . . . . . . . . . . . . . . . . EX Resistance % 4 | 4 . . . . . . . . . . . . . . . . . . KI Damage % 4 | 4 . . . . . . . . . . . . . . . . . . TH Damage % 4 | 4 . . . . . . . . . . . . . . . . . . EX Damage % 4 | 4 . . . . . . . . . . . . . . . . . . Protomatter Created 1564 | . 33 31 173 . 11 37 297 . . 104 . 2 . . 30 . 39 807 Protomatter Decayed 8746 | . . 31 29 . 11 . 97 . . 63 41 . . . . . . 8474 Game ------ Seed DispersionKineticBlaster Manual? 0 Play Time 01:06:46 Cumulative 53.4 hours Start 2024.08.15 @ 20:14:56 End 2024.08.15 @ 21:24:36 Sessions 1 Manual Loads 0 Difficulty Explorer Special Mode Winter2019/RPGLIKE Game No. 47 Rogue 0 Adventurer 0 Explorer 47 Win Type 1 Total 11 Types 4/3/2/1/0/0/1/0/0 Lore% 33 Gallery% 56 Achievement% 64 Wizard Run 0 Options --------- Layout 0 ASCII 0 Keyboard 0 Movement Mouse Keybinds 0 Fullscreen 2 Font 18/SmallcapsGlow Map View 76x50 Zoom Use 92% Tactical HUD 1 Map Filters NONE Filters NONE Steam 1 RUN: 7c8d17ef-3b19-4d18-a4fe-69c3cff30789